bitfinex/quotes_ETHUSD_20251017
["timestamp","ask_amount","ask_price","bid_price","bid_amount"]
[1760719782480,0.04569692,3814.8,3814.5,2.62255183]
[1760719782665,0.04569692,3814.8,3814.6,2.62148621]
[1760719782860,0.04569692,3814.8,3814.5,0.001]
[1760719783104,0.04569692,3814.8,3814.6,2.62149909]
[1760719783403,0.1071,3814.7,3814.5,0.001]
[1760719783591,0.02629794,3814.6,3814.5,0.001]
[1760719783924,0.13339794,3814.6,3814.5,0.001]
[1760719784125,0.5183404,3814.6,3814.5,0.001]
[1760719784326,4.89414518,3814.6,3814.5,0.001]
[1760719784528,2.2463404,3814.6,3814.5,0.001]
[1760719785033,4.86784724,3814.6,3814.5,0.001]
[1760719785227,2.2463404,3814.6,3814.5,0.001]
[1760719785532,2.1392404,3814.6,3814.5,2.62257556]
[1760719785730,2.1392404,3814.6,3814.5,0.001]
[1760719786023,7.88523624,3814.6,3814.5,0.001]
[1760719786724,7.88523624,3814.6,3814.1,0.001]
[1760719786725,3.25538176,3814.2,3814.1,0.001]
[1760719786886,28.83158165,3813.7,3813.6,0.001]
[1760719787090,30.17165265,3813.7,3813.6,0.001]
[1760719787319,27.0507519,3813.7,3813.6,0.001]
[1760719787667,5.10601814,3813.7,3813.6,0.001]
[1760719787821,12.3127258,3813.7,3813.6,0.001]
[1760719788007,26.90175739,3813.7,3813.6,0.001]
[1760719788522,24.15625966,3813.7,3813.6,0.001]
[1760719788831,24.7923564,3813.7,3813.6,0.001]
[1760719789012,32.0932944,3813.7,3813.6,0.001]
[1760719789385,32.09079766,3813.7,3813.6,0.001]
[1760719789618,26.80105466,3813.7,3813.6,0.001]
[1760719789816,20.41925966,3813.7,3813.6,0.001]
[1760719789998,31.45719766,3813.7,3813.6,0.001]
[1760719790194,29.65447766,3813.7,3813.6,0.001]
[1760719790394,28.66835366,3813.7,3813.6,0.001]
[1760719791002,31.45719766,3813.7,3813.6,0.001]
[1760719791459,31.4596944,3813.7,3813.6,0.001]
[1760719791738,30.16357066,3813.7,3813.6,0.001]
[1760719792116,31.45719766,3813.7,3813.6,0.001]
[1760719792316,27.97962666,3813.7,3813.6,0.001]
[1760719792518,2.47998658,3813.7,3813.6,0.001]
[1760719792710,2.13942831,3813.7,3813.6,0.001]
[1760719792910,0.41142831,3813.7,3813.6,0.001]
[1760719793140,3.0335538,3813.7,3813.6,0.001]
[1760719793340,15.92808974,3813.7,3813.6,0.001]
[1760719793645,4.7615538,3813.7,3813.6,0.001]
[1760719793840,2.13942831,3813.7,3813.6,0.001]
[1760719794341,4.7615538,3813.7,3813.6,0.001]
[1760719794909,11.9469938,3813.7,3813.6,0.001]
[1760719795108,11.5995388,3813.7,3813.6,0.001]
[1760719795312,7.2788538,3813.7,3813.6,0.001]
[1760719795943,8.5867008,3813.7,3813.6,0.001]
[1760719796145,4.7615538,3813.7,3813.6,0.001]
[1760719796318,4.8651538,3813.7,3813.6,0.001]
[1760719796724,4.7615538,3813.7,3813.6,0.001]
[1760719796921,7.0476818,3813.7,3813.6,0.001]
[1760719797316,6.9440818,3813.7,3813.6,0.001]
[1760719797510,4.7615538,3813.7,3813.6,0.001]
[1760719797715,2.13942831,3813.7,3813.6,0.001]
[1760719797914,4.7615538,3813.7,3813.6,0.001]
[1760719798514,8.16542974,3813.7,3813.6,0.001]
[1760719798750,15.9030918,3813.7,3813.6,0.001]
[1760719799449,15.90558854,3813.7,3813.6,0.001]
[1760719800857,15.9030918,3813.7,3813.6,0.001]
[1760719801054,6.9101798,3813.7,3813.6,0.001]
[1760719801261,6.9348148,3813.7,3813.6,0.001]
[1760719801448,4.7615538,3813.7,3813.6,0.001]
[1760719801646,11.3737078,3813.7,3813.6,0.001]
[1760719801956,15.9030918,3813.7,3813.6,0.001]
[1760719802145,15.17786154,3813.7,3813.6,0.001]
[1760719802457,8.4030448,3813.7,3813.6,0.001]
[1760719802934,4.7615538,3813.7,3813.6,0.001]
[1760719803135,7.9637098,3813.7,3813.6,0.001]
[1760719803335,8.06983405,3813.7,3813.6,0.001]
[1760719803740,7.9657098,3813.7,3813.6,0.001]
[1760719804060,4.7635538,3813.7,3813.6,0.001]
[1760719804938,2.14142831,3813.7,3813.6,0.001]
[1760719805139,0.41342831,3813.7,3813.6,0.001]
[1760719805460,0.41342831,3813.7,3813.6,3.06659425]
[1760719805825,0.002,3813.7,3813.6,3.06659425]
[1760719806262,0.1324,3813.7,3813.6,0.4444]
[1760719807131,0.1324,3813.7,3813.6,3.06659425]
[1760719808066,0.002,3813.7,3813.6,3.06659425]
[1760719808248,0.002,3813.7,3813.6,3.22321619]
[1760719808663,0.002,3814.5,3814.4,2.62164429]
[1760719808866,0.4111958,3815.1,3814.8,2.6213694]
[1760719809042,0.0456866,3816.4,3814.8,2.64758309]
[1760719809241,0.0456866,3816.4,3814.8,3.0647694]
[1760719809477,0.4110872,3816.2,3814.8,3.0647694]
[1760719809782,1.9411,3815.8,3814.3,0.224]
[1760719810078,1.9411,3815.8,3814.6,0.4434]
[1760719810079,0.02829794,3815.7,3814.6,0.4434]
[1760719810384,0.04569224,3815.2,3814.8,2.6213694]
[1760719810673,0.41114376,3815.2,3814.8,2.6213694]
[1760719810841,0.41114376,3815.2,3814.8,3.0647694]
[1760719811042,0.002,3815.7,3814.8,3.0647694]
[1760719811478,0.002,3815.7,3814.8,3.09098309]
[1760719811834,0.002,3815.7,3814.8,3.0647694]
[1760719812644,0.002,3815.7,3814.8,3.09098309]
[1760719812836,0.002,3815.7,3814.8,3.0647694]
[1760719813639,0.002,3815.7,3814.8,3.09098309]
[1760719814254,1.73,3815.7,3814.8,3.0647694]
[1760719814495,0.002,3815.7,3814.8,3.0647694]
[1760719816246,0.002,3815.7,3814.8,3.09098309]
[1760719816568,0.002,3815.7,3814.8,3.0647694]
[1760719817954,2.62093078,3815.5,3814.3,0.224]
[1760719818269,0.1848,3815.3,3814.3,0.224]
[1760719818470,0.1848,3815.3,3813.6,0.001]
[1760719818471,0.02629794,3815.2,3813.6,0.001]
[1760719818634,0.1304,3814.6,3814.0,0.224]
[1760719818834,0.1304,3814.6,3813.6,0.001]
[1760719819077,0.1304,3813.8,3813.6,0.001]
[1760719819284,1.75429794,3814.2,3813.6,0.001]
[1760719819569,0.2128,3813.8,3813.6,0.001]
[1760719819755,0.3962,3813.8,3813.6,0.001]
[1760719819965,0.1834,3813.7,3813.6,0.001]
[1760719820276,4.55982343,3813.7,3813.6,0.001]
[1760719820660,2.03817183,3813.7,3813.6,0.001]
[1760719820838,1.9114,3813.7,3813.6,0.001]
[1760719821036,1.728,3813.7,3813.6,0.001]
[1760719821270,2.13935726,3813.7,3813.6,0.001]
[1760719821436,0.41135726,3813.7,3813.6,2.62319425]
[1760719821638,0.2125,3814.1,3813.6,0.001]
[1760719821840,0.41131288,3813.8,3813.6,0.001]
[1760719822039,4.37642343,3813.7,3813.6,0.001]
[1760719822235,4.56012343,3813.7,3813.6,0.001]
[1760719823156,4.60583675,3813.7,3813.6,0.001]
[1760719823370,1.95741332,3813.7,3813.6,0.001]
[1760719823737,1.77371332,3813.7,3813.6,0.001]
[1760719823983,1.77371332,3813.7,3813.6,2.62319425]
[1760719824178,0.002,3813.7,3813.6,3.06109425]
[1760719824359,0.543705,3813.7,3813.6,3.06109425]
[1760719824850,0.1324,3813.7,3813.6,3.06109425]
[1760719825045,0.002,3813.7,3813.6,3.06109425]
[1760719825275,0.002,3813.7,3813.6,2.62319425]
[1760719825693,0.002,3813.7,3813.6,3.06109425]
[1760719826289,0.002,3813.7,3813.6,3.19149425]
[1760719826649,1e-08,3814.1,3814.0,2.62191924]
[1760719826849,1e-08,3814.1,3814.0,2.75231924]
[1760719827076,1e-08,3814.1,3814.0,3.19021924]
[1760719827694,1e-08,3814.1,3814.0,2.62191924]
[1760719827989,1e-08,3814.1,3814.0,3.05981924]
[1760719828194,1e-08,3814.1,3814.0,3.08603843]
[1760719828353,1e-08,3814.1,3814.0,3.19021924]
[1760719828855,1e-08,3814.1,3814.0,2.62191924]
[1760719829184,1e-08,3814.1,3814.0,3.05981924]
[1760719829485,1e-08,3814.1,3814.0,2.62191924]
[1760719829658,1e-08,3814.1,3814.0,3.05981924]
[1760719829858,1e-08,3814.1,3814.0,3.08603843]
[1760719830382,1e-08,3814.1,3814.0,3.05981924]
[1760719830787,1e-08,3814.1,3814.0,2.62191924]
[1760719833202,1e-08,3814.1,3814.0,3.05981924]
[1760719833710,1e-08,3814.1,3814.0,3.08603843]
[1760719833884,1e-08,3814.1,3814.0,3.05981924]
[1760719834086,1e-08,3814.1,3814.0,2.62191924]
[1760719834608,1e-08,3814.1,3814.0,3.08603843]
[1760719834812,0.002,3814.5,3814.4,2.62164429]
[1760719835119,0.002,3814.5,3814.4,5.38764429]
[1760719835406,0.002,3814.5,3814.4,5.82554429]
[1760719836173,0.002,3815.7,3815.2,2.62109456]
[1760719836374,0.002,3815.7,3815.2,2.6473055]
[1760719836573,0.002,3815.7,3815.2,3.05899456]
[1760719836916,0.002,3815.7,3815.2,2.62109456]
[1760719837411,0.153,3815.3,3814.0,0.2223]
[1760719837574,1.879,3815.2,3813.4,0.2223]
[1760719837774,1.728,3815.0,3814.4,2.62157567]
[1760719838087,0.223,3814.5,3814.4,2.62157567]
[1760719838287,0.2223,3814.8,3814.0,2.62186291]
[1760719838506,0.2223,3814.8,3813.6,0.4389]
[1760719838507,0.2223,3814.8,3814.5,2.62156728]
[1760719838706,0.2223,3814.8,3814.6,2.62150559]
[1760719839018,0.1546,3814.7,3814.6,2.62150559]
[1760719839607,0.1546,3814.7,3814.4,2.62163266]
[1760719839798,0.1546,3814.6,3814.4,2.62163266]
[1760719840211,0.1304,3814.4,3814.1,2.62184925]
[1760719840433,0.1304,3814.2,3813.6,0.001]
[1760719840638,0.1546,3814.3,3813.6,0.001]
[1760719840835,0.1304,3813.7,3813.6,2.62312826]
[1760719841136,0.285,3813.7,3813.6,0.001]
[1760719842302,0.54171978,3813.7,3813.6,0.001]
[1760719842908,0.69631978,3813.7,3813.6,0.001]
[1760719843529,2.42431978,3813.7,3813.6,0.001]
[1760719843839,5.04644527,3813.7,3813.6,0.001]
[1760719844639,2.42431978,3813.7,3813.6,0.001]
[1760719844811,5.04644527,3813.7,3813.6,0.001]
[1760719845140,4.961759,3813.7,3813.6,0.001]
[1760719845500,4.91604527,3813.7,3813.6,0.001]
[1760719845704,2.29391978,3813.7,3813.6,0.001]
[1760719845935,4.91604527,3813.7,3813.6,0.001]
[1760719846144,16.58758327,3813.7,3813.6,0.001]
[1760719846324,31.34165163,3813.4,3813.3,0.001]
[1760719846839,31.49625163,3813.4,3813.3,0.001]
[1760719847142,20.45831363,3813.4,3813.3,0.001]
[1760719847335,22.45230836,3813.4,3813.3,0.001]
[1760719847636,4.50756604,3813.4,3813.3,0.001]
[1760719847846,6.84161704,3813.4,3813.3,0.001]
[1760719848253,14.80168504,3813.4,3813.3,0.001]
[1760719848456,13.73065804,3813.4,3813.3,0.001]
[1760719848965,13.73065804,3813.4,3812.9,0.001]
[1760719848966,0.63626178,3813.1,3812.9,0.001]
[1760719849120,20.30404375,3813.0,3812.9,0.001]
[1760719849428,26.22185459,3813.0,3812.9,0.001]
[1760719849634,26.67906965,3813.0,3812.9,0.001]
[1760719850040,4.987075,3812.9,3812.8,0.001]
[1760719850356,4.987075,3812.9,3810.0,0.2223]
[1760719850357,1.728,3811.7,3810.9,2.62399213]
[1760719850522,1.9507,3811.9,3810.8,0.6602]
[1760719850717,1.9507,3811.9,3811.2,2.62379042]
[1760719850922,0.02629794,3811.8,3810.8,3.28426122]
[1760719851124,2.13952348,3811.7,3810.8,3.28426122]
[1760719851357,0.02629794,3811.6,3810.8,0.6602]
[1760719851586,2.13952348,3811.7,3810.9,2.62405206]
[1760719851587,0.41152348,3811.7,3810.9,2.62405206]
[1760719851720,1.728,3811.6,3810.8,3.28431284]
[1760719851924,0.41152348,3811.7,3810.8,3.28431284]
[1760719851925,2.13952348,3811.7,3810.8,0.6602]
[1760719852151,2.13952348,3811.7,3811.0,2.62395815]
[1760719852881,2.13952348,3811.7,3810.0,0.2223]
[1760719852882,0.56902348,3811.7,3810.0,0.2223]
[1760719853164,1.728,3811.1,3810.4,2.62435691]
[1760719853321,2.62414182,3810.8,3810.2,0.2177]
[1760719853527,0.02629794,3810.7,3810.0,0.2223]
[1760719853861,2.84517718,3810.9,3810.0,0.2223]
[1760719854059,1.728,3810.7,3810.0,0.2223]
[1760719854369,0.02629794,3810.6,3809.6,0.2177]
[1760719854523,1.728,3810.0,3809.3,0.2177]
[1760719854923,15.50342843,3810.3,3809.0,0.2223]
[1760719854924,0.1312,3809.3,3809.0,0.2223]
[1760719855166,0.1312,3809.3,3808.4,0.2177]
[1760719855398,1.728,3809.5,3808.4,0.654]
[1760719855399,0.02629794,3809.2,3808.4,0.654]
[1760719855603,0.02629794,3809.2,3808.4,2.84342155]
[1760719855901,0.02629794,3809.2,3808.4,0.2177]
[1760719856189,0.41181286,3809.1,3808.4,0.2177]
[1760719856394,0.41181286,3809.1,3807.5,0.654]
[1760719856395,0.1312,3808.4,3807.5,0.654]
[1760719856687,0.18669794,3809.0,3807.9,2.62611938]
[1760719856688,0.1312,3808.0,3807.9,2.62611938]
[1760719856890,0.3739,3809.0,3807.9,0.4363]
[1760719857089,0.3739,3809.0,3807.5,0.654]
[1760719857255,0.1312,3807.8,3807.5,0.654]
[1760719857458,0.1312,3807.8,3807.7,2.62625732]
[1760719857681,0.1312,3807.8,3807.7,3.06255732]
[1760719858614,0.1312,3807.8,3807.7,2.62625732]
[1760719858896,0.1312,3807.8,3807.7,3.06255732]
[1760719859269,0.1312,3807.8,3807.7,3.08881989]
[1760719859473,0.1312,3807.8,3807.7,3.06255732]
[1760719859661,0.1312,3807.8,3807.7,3.08881989]
[1760719860285,0.41191076,3808.3,3807.7,3.08881989]
[1760719860286,0.41191076,3808.3,3808.2,2.6259125]
[1760719860605,0.04576165,3809.7,3808.2,0.4363]
[1760719860766,0.04576165,3809.7,3809.6,2.6249475]
[1760719860960,0.00335,3810.8,3810.2,2.62447546]
[1760719861165,0.37,3810.9,3810.4,2.6243897]
[1760719861385,0.37,3810.9,3809.7,2.62487859]
[1760719861586,0.04575172,3810.7,3810.4,2.62433954]
[1760719861798,0.17519794,3810.6,3809.6,0.2177]
[1760719861998,0.17519794,3810.6,3808.7,2.62556253]
[1760719861999,1.728,3810.3,3809.5,2.62495839]
[1760719862295,15.54918015,3810.7,3810.0,2.6246719]
[1760719862296,15.69808015,3810.7,3810.0,2.6246719]
[1760719862496,15.65232843,3810.7,3809.8,2.6248093]
[1760719862794,1.728,3810.4,3809.5,2.62496828]
[1760719863014,2.7741642,3810.4,3809.6,2.62488097]
[1760719863174,2.7741642,3810.4,3809.7,2.62486088]
[1760719863375,1.8777,3810.4,3809.8,2.62480653]
[1760719863698,0.04575456,3810.6,3809.9,2.62470552]
[1760719863895,0.41171314,3810.4,3809.2,0.2177]
[1760719864103,1.728,3810.0,3808.5,0.4553]
[1760719864295,15.50342843,3810.2,3808.1,0.673]
[1760719864296,1.728,3809.3,3808.1,0.673]
[1760719864493,0.02629794,3809.2,3808.2,2.6259125]
[1760719864697,0.1394,3809.3,3808.1,0.673]
[1760719865201,0.41184979,3809.2,3808.1,0.673]
[1760719865507,0.41184979,3809.2,3807.6,0.001]
[1760719865508,25.16503843,3808.7,3807.6,0.001]
[1760719865675,2.62598991,3808.1,3807.6,0.001]
[1760719865878,1.8674,3808.6,3807.6,0.001]
[1760719866106,15.50342843,3808.7,3807.6,0.001]
[1760719866319,0.2202,3807.7,3807.6,0.001]
[1760719866634,1.728,3808.1,3807.6,0.001]
[1760719866809,1.728,3808.2,3807.6,0.001]
[1760719867011,2.75146115,3808.0,3807.6,0.001]
[1760719867227,12.765938,3807.7,3807.6,0.001]
[1760719867387,1.728,3807.7,3807.6,0.001]
[1760719867721,0.00392881,3808.6,3807.6,0.4563]
[1760719867904,0.41194784,3808.6,3807.6,0.4563]
[1760719868080,0.41194784,3808.6,3808.5,2.62570565]
[1760719868281,0.3481,3809.3,3808.8,2.62549766]
[1760719868475,0.04576831,3809.0,3808.9,2.62542991]
[1760719868785,0.04576831,3809.0,3808.4,0.4553]
[1760719869142,0.04576831,3809.0,3808.3,0.2248]
[1760719869280,0.2331,3808.9,3808.0,0.2248]
[1760719869478,0.2331,3808.9,3808.4,2.62572373]
[1760719869775,0.1285,3808.8,3807.4,0.4553]
[1760719870222,0.02629794,3808.7,3807.4,0.4553]
[1760719870510,0.02629794,3808.7,3807.9,2.62611938]
[1760719870511,0.1312,3808.0,3807.9,2.62611938]
[1760719870720,0.04577253,3808.6,3807.3,0.001]
[1760719870928,4.35382362,3808.4,3807.4,2.62639853]
[1760719871084,1.728,3808.4,3807.8,2.62617482]
[1760719871431,0.1312,3808.0,3807.9,2.62611938]
[1760719872123,0.1312,3808.0,3807.9,3.08141938]
[1760719872336,0.04577253,3808.6,3808.5,2.62570565]
[1760719872482,0.41187508,3808.7,3808.6,2.62563671]
[1760719872681,0.41187508,3808.7,3808.6,3.08093671]
[1760719872914,0.1312,3809.0,3808.9,2.62542991]
[1760719873101,0.04576529,3809.3,3807.5,0.4553]
[1760719873102,0.2352,3808.9,3807.5,0.4553]
[1760719873301,0.1312,3808.7,3807.5,0.4553]
[1760719873617,0.1312,3808.0,3807.9,2.62611938]
[1760719873811,0.1312,3808.3,3808.2,2.6259125]
[1760719874187,0.1312,3808.3,3808.2,3.0812125]
[1760719874623,0.1312,3808.3,3808.2,2.6259125]
[1760719874812,0.1312,3808.3,3808.2,3.0812125]
[1760719875121,0.1312,3808.3,3808.2,2.6259125]
[1760719875497,0.1312,3808.3,3807.8,2.85092753]
[1760719875831,0.1312,3808.3,3807.7,2.62625732]
[1760719876014,0.41185813,3808.5,3808.0,2.62604081]
[1760719876217,0.41185813,3808.5,3807.6,0.001]
[1760719876218,0.41185813,3808.5,3807.7,2.62625732]
[1760719876422,0.41185813,3808.5,3808.4,2.6257746]
[1760719877089,0.41185813,3808.5,3808.0,0.4553]
[1760719877289,0.1312,3808.2,3808.1,3.08128146]
[1760719877524,0.41185813,3808.5,3807.9,0.2248]
[1760719877525,0.54305813,3808.5,3807.9,0.2248]
[1760719877821,0.41185813,3808.5,3808.4,2.6257746]
[1760719877990,0.54305813,3808.5,3807.9,0.2248]
[1760719878192,0.1312,3808.2,3807.6,0.001]
[1760719878389,0.1312,3808.0,3807.7,3.08151399]
[1760719878594,0.41185813,3808.5,3807.7,3.08151399]
[1760719878595,0.41185813,3808.5,3807.9,0.2248]
[1760719878805,0.1312,3808.3,3808.2,2.6259125]
[1760719879122,0.1312,3808.3,3808.2,3.0812125]
[1760719879319,0.41185813,3808.5,3808.4,2.6257746]
[1760719879498,0.1312,3808.7,3808.6,2.62563671]
[1760719879897,0.1312,3808.7,3808.5,2.62569779]
[1760719880100,0.2331,3808.9,3808.7,2.62555348]
[1760719880329,0.002,3808.9,3808.8,2.62549884]
[1760719881141,0.1312,3808.8,3808.2,0.1312]
[1760719881303,0.3654,3808.9,3808.0,2.62605042]
[1760719881631,0.3654,3808.9,3808.1,0.49945981]
[1760719881632,0.002,3808.9,3808.1,0.49945981]
[1760719881798,0.2358,3808.9,3807.9,0.2248]
[1760719882005,1.75429794,3808.8,3807.9,0.2248]
[1760719882204,0.02629794,3808.8,3808.2,2.62590701]
[1760719882515,0.02629794,3808.8,3808.1,2.62596868]
[1760719882516,1.728,3808.7,3808.1,2.62596868]
[1760719882718,0.3655,3808.9,3808.4,2.62577015]
[1760719883027,0.1297,3808.8,3808.3,2.625843]
[1760719883230,0.1297,3808.7,3808.4,2.62575428]
[1760719883433,0.64766519,3808.9,3808.6,2.62562535]
[1760719883434,0.41386519,3808.9,3808.6,2.62562535]
[1760719883601,0.41386519,3808.9,3808.7,2.62556003]
[1760719883803,0.41386519,3808.9,3808.2,0.2198]
[1760719884031,0.64666519,3808.9,3808.6,2.62559774]
[1760719884233,0.64666519,3808.9,3808.7,2.62554573]
[1760719884437,0.64666519,3808.9,3808.1,0.02625981]
[1760719884635,1.728,3808.7,3807.6,0.001]
[1760719884936,4.35425732,3807.7,3807.6,0.001]
[1760719885109,4.38055526,3807.7,3807.6,0.001]
[1760719885311,4.55703465,3807.7,3807.6,0.001]
[1760719885620,4.48495732,3807.7,3807.6,0.001]
[1760719886222,1.728,3807.7,3807.6,0.001]
[1760719886432,4.35425732,3807.7,3807.6,0.001]
[1760719886631,4.76622898,3807.7,3807.6,0.001]
[1760719886941,4.89692898,3807.7,3807.6,0.001]
[1760719888223,2.13997166,3807.7,3807.6,0.001]
[1760719888425,4.89692898,3807.7,3807.6,0.001]
[1760719888739,4.92322692,3807.7,3807.6,0.001]
[1760719889350,4.89692898,3807.7,3807.6,0.001]
[1760719889524,2.13997166,3807.7,3807.6,0.001]
[1760719890032,1.728,3807.7,3807.6,2.62732629]
[1760719890240,1.77377989,3807.7,3807.6,0.001]
[1760719891551,4.40003721,3807.7,3807.6,0.001]
[1760719891754,4.53073721,3807.7,3807.6,0.001]
[1760719892048,4.40003721,3807.7,3807.6,0.001]
[1760719892215,4.53073721,3807.7,3807.6,0.001]
[1760719892543,4.40003721,3807.7,3807.6,0.001]
[1760719892749,4.53073721,3807.7,3807.6,0.001]
[1760719893617,16.61861499,3807.7,3807.6,0.001]
[1760719893968,4.94278955,3807.7,3807.6,0.001]
[1760719894178,4.9470218,3807.7,3807.6,0.001]
[1760719894465,4.94278955,3807.7,3807.6,0.001]
[1760719894817,2.31653223,3807.7,3807.6,0.001]
[1760719895018,1.728,3807.7,3807.6,2.62732629]
[1760719895226,1.728,3807.7,3807.6,0.001]
[1760719895847,1.728,3807.7,3807.6,3.10052629]
[1760719896221,1.728,3807.7,3807.6,0.001]
[1760719896553,4.48495732,3807.7,3807.6,0.001]
[1760719896852,4.89694675,3807.7,3807.6,0.001]
[1760719897420,4.76624675,3807.7,3807.6,0.001]
[1760719897661,2.13998943,3807.7,3807.6,0.001]
[1760719898124,4.76624675,3807.7,3807.6,0.001]
[1760719898618,2.13998943,3807.7,3807.6,0.001]
[1760719899432,4.94273209,3807.7,3807.6,0.001]
[1760719899949,2.31647477,3807.7,3807.6,0.001]
[1760719900154,2.18577477,3807.7,3807.6,0.001]
[1760719900954,4.94273209,3807.7,3807.6,0.001]
[1760719901348,2.18577477,3807.7,3807.6,0.001]
[1760719901553,4.81203209,3807.7,3807.6,0.001]
[1760719901865,1.90448534,3807.7,3807.6,0.001]
[1760719902166,4.40004266,3807.7,3807.6,0.001]
[1760719902327,1.77378534,3807.7,3807.6,0.001]
[1760719902522,4.81205091,3807.7,3807.6,0.001]
[1760719903049,4.94275091,3807.7,3807.6,0.001]
[1760719903551,4.81205091,3807.7,3807.6,0.001]
[1760719903751,4.94275091,3807.7,3807.6,0.001]
[1760719903952,4.81205091,3807.7,3807.6,0.001]
[1760719904154,4.94275091,3807.7,3807.6,0.001]
[1760719904370,16.64058685,3807.7,3807.6,0.001]
[1760719904545,16.61428891,3807.7,3807.6,0.001]
[1760719904742,13.51356325,3807.4,3807.3,0.001]
[1760719904959,27.66802093,3807.4,3807.3,0.001]
[1760719905165,22.50784193,3807.4,3807.3,0.001]
[1760719905372,31.03076293,3807.4,3807.3,0.001]
[1760719905672,31.03076293,3807.4,3806.9,0.001]
[1760719905673,11.67601864,3807.0,3806.9,0.001]
[1760719905874,16.03110388,3806.5,3806.0,0.001]
[1760719906172,31.53453231,3806.5,3806.0,0.001]
[1760719906374,16.02689934,3806.1,3806.0,0.001]
[1760719906671,14.30368371,3805.9,3804.2,0.001]
[1760719906974,15.39371358,3805.5,3804.2,0.001]
[1760719907176,16.02731358,3805.5,3804.2,0.001]
[1760719907379,16.16729798,3805.5,3804.2,0.001]
[1760719907546,2.6329191,3805.1,3804.2,0.001]
[1760719907872,31.56223872,3805.1,3804.2,0.001]
[1760719908073,31.67114078,3805.1,3804.2,0.001]
[1760719908276,13.66626612,3804.7,3804.2,0.001]
[1760719908463,15.39426612,3804.7,3804.2,0.001]
[1760719908663,15.53256612,3804.7,3804.2,0.001]
[1760719909175,15.39454247,3804.3,3804.2,0.001]
[1760719909377,31.42068994,3804.3,3804.2,0.001]
[1760719909578,31.46651928,3804.3,3804.2,0.001]
[1760719909785,31.46651928,3804.3,3803.0,0.001]
[1760719909786,0.6390201,3803.7,3803.0,0.001]
[1760719910074,16.03441963,3803.1,3803.0,0.001]
[1760719910376,16.03441963,3803.1,3800.7,0.2198]
[1760719910377,1.728,3801.3,3800.7,0.2198]
[1760719910578,1.728,3801.0,3800.3,0.2198]
[1760719910744,17.12054747,3801.3,3800.0,0.2198]
[1760719910745,1.728,3800.6,3800.0,0.2198]
[1760719910945,1.728,3800.3,3799.6,0.2198]
[1760719911158,0.02629794,3800.2,3799.6,0.2198]
[1760719911563,0.13143916,3800.3,3800.1,0.2175]
[1760719911972,2.63109879,3800.7,3800.1,0.2175]
[1760719912160,0.17470713,3800.3,3800.1,0.2175]
[1760719912361,0.04586657,3800.3,3800.1,0.2175]
[1760719912563,0.04586657,3800.3,3800.2,3.08244045]
[1760719912876,0.04586657,3800.3,3800.1,0.2175]
[1760719913250,0.45863866,3800.3,3800.1,0.2175]
[1760719914083,0.45863866,3800.3,3800.2,0.451]
[1760719914780,0.45863866,3800.3,3800.1,0.2185]
[1760719915175,0.02629794,3800.2,3800.1,0.6695]
[1760719915558,0.45863866,3800.3,3800.1,0.6695]
[1760719915949,0.45863866,3800.3,3800.2,3.08244045]
[1760719916281,0.41277209,3800.3,3800.2,3.08244045]
[1760719916649,0.12992794,3801.6,3800.2,0.451]
[1760719916982,0.41270336,3801.0,3800.9,2.63094328]
[1760719917282,0.41270336,3801.0,3800.9,3.08194328]
[1760719917595,0.41270336,3801.0,3800.5,0.451]
[1760719917794,0.02629794,3800.9,3800.4,2.63125693]
[1760719917964,0.02629794,3800.9,3800.5,3.08222459]
[1760719918463,0.02629794,3800.9,3800.5,0.451]
[1760719919297,0.02629794,3800.9,3800.1,0.2185]
[1760719919482,0.02629794,3800.9,3800.3,2.63133321]
[1760719919870,0.24809794,3800.9,3800.1,0.2185]
[1760719920096,2.63116235,3800.7,3800.1,0.2185]
[1760719920407,2.63144045,3800.2,3800.1,0.001]
[1760719920605,4.84717845,3800.2,3800.1,0.001]
[1760719920762,4.87347639,3800.2,3800.1,0.001]
[1760719921080,22.18819258,3800.2,3800.1,0.001]
[1760719921284,22.80174506,3800.2,3800.1,0.001]
[1760719921483,32.43234032,3800.2,3800.1,0.001]
[1760719921790,31.61769464,3800.2,3800.1,0.001]
[1760719922300,12.31707704,3800.2,3800.1,0.001]
[1760719922664,17.37635089,3800.2,3800.1,0.001]
[1760719923296,17.76575231,3800.2,3800.1,0.001]
[1760719923604,17.37635089,3800.2,3800.1,0.001]
[1760719923771,16.64429504,3800.2,3800.1,0.001]
[1760719923961,16.64440585,3800.2,3800.1,0.001]
[1760719924363,17.05703846,3800.2,3800.1,0.001]
[1760719924586,16.64443356,3800.2,3800.1,0.001]
[1760719925180,17.0634274,3800.2,3800.1,0.001]
[1760719925370,17.45282882,3800.2,3800.1,0.001]
[1760719925574,16.03792147,3799.6,3799.5,1e-08]
[1760719925887,32.2388642,3799.6,3799.5,1e-08]
[1760719926071,32.3879642,3799.6,3799.5,1e-08]
[1760719926268,32.3879642,3799.6,3796.1,0.6618]
[1760719926269,2.63342703,3797.4,3796.1,0.6618]
[1760719926469,3.254227,3797.4,3796.1,0.6618]
[1760719926669,2.6323508,3798.9,3796.1,0.6618]
[1760719926670,8.206377,3798.2,3797.3,0.2147]
[1760719926876,0.6336,3798.4,3797.3,0.6618]
[1760719927075,1.728,3798.3,3797.3,0.6618]
[1760719927276,2.63305552,3797.9,3797.3,0.6618]
[1760719927476,2.63337466,3797.5,3796.7,0.4471]
[1760719927710,1.728,3797.8,3796.7,0.4471]
[1760719927711,1.728,3797.6,3796.7,0.4471]
[1760719928011,15.39254747,3797.9,3796.2,0.003]
[1760719928012,2.63414377,3796.3,3796.2,0.003]
[1760719928312,5.14915909,3796.3,3796.2,0.003]
[1760719928476,5.14915909,3796.3,3795.0,0.4501]